bitfinex-derivatives/quotes_ETHF0:USTF0_20250110
["timestamp","ask_amount","ask_price","bid_price","bid_amount"]
[1736541560040,2.58982358,3266.0,3265.4,0.4466]
[1736541560338,2.58982358,3265.6,3265.1,3.2078]
[1736541560635,2.58982358,3265.6,3264.7,0.76572]
[1736541560636,0.30621,3265.5,3265.0,0.30625]
[1736541560837,0.4452,3265.4,3265.0,0.30625]
[1736541561044,0.30623,3265.3,3264.7,3.2078]
[1736541561346,0.4452,3265.4,3264.7,3.2078]
[1736541561545,0.75143,3265.4,3265.2,0.30624]
[1736541561741,0.30623,3265.3,3265.1,0.30624]
[1736541561941,0.30624,3265.2,3265.0,0.30625]
[1736541562337,0.30624,3265.3,3265.1,0.30624]
[1736541562651,0.4452,3265.4,3265.3,0.30623]
[1736541562845,2.89602358,3265.6,3265.2,0.30624]
[1736541563146,2.89602358,3265.6,3265.5,0.30621]
[1736541563352,0.3062,3265.7,3265.6,0.3062]
[1736541563642,1.255,3265.8,3265.2,3.2078]
[1736541563841,0.3062,3265.7,3265.6,0.30619]
[1736541564046,3.96912358,3266.0,3265.4,3.2078]
[1736541564245,3.96912358,3266.0,3265.7,40.8]
[1736541564445,0.30618,3265.8,3265.7,40.8]
[1736541565243,0.30618,3265.9,3265.8,0.30618]
[1736541565947,0.30618,3265.8,3265.7,41.10619]
[1736541566653,0.30616,3266.1,3266.0,0.30616]
[1736541566849,3.84482358,3266.4,3265.7,44.0078]
[1736541566850,0.30617,3266.0,3265.9,0.30617]
[1736541567144,3.84482358,3266.4,3265.8,0.30618]
[1736541567348,0.30617,3265.9,3265.8,0.30618]
[1736541567850,0.30616,3266.1,3266.0,0.30616]
[1736541568047,2.58982358,3266.4,3265.7,40.8]
[1736541568348,0.30618,3265.8,3265.7,41.10619]
[1736541568649,0.30618,3265.8,3265.7,40.8]
[1736541568843,0.76547,3265.8,3265.2,3.2078]
[1736541569039,0.30625,3265.1,3265.0,0.30626]
[1736541569242,0.30625,3265.1,3265.0,41.10626]
[1736541569441,3.2078,3265.4,3265.0,41.10626]
[1736541569442,3.2078,3265.4,3265.0,40.8]
[1736541569746,0.30624,3265.2,3265.1,0.30625]
[1736541570246,3.2078,3265.4,3265.0,40.8]
[1736541570443,0.30623,3265.4,3265.3,0.30622]
[1736541570748,0.8928,3265.7,3265.0,40.8]
[1736541570946,0.8928,3265.7,3265.1,3.2078]
[1736541571139,0.30622,3265.5,3265.4,0.30621]
[1736541571350,0.30621,3265.6,3265.5,0.30621]
[1736541572148,0.30622,3265.5,3265.4,0.30622]
[1736541572944,0.8928,3265.7,3265.1,0.76563]
[1736541573149,0.4407,3265.7,3265.1,3.97343]
[1736541573351,0.7469,3265.7,3265.6,0.3062]
[1736541573745,0.4407,3265.7,3265.1,3.97343]
[1736541573945,0.30621,3265.5,3265.4,0.30621]
[1736541574146,1.255,3265.8,3265.6,0.3062]
[1736541574346,0.3062,3265.7,3265.6,0.3062]
[1736541574548,0.30619,3265.8,3265.7,0.30619]
[1736541575249,2.14068777,3266.0,3265.2,0.76559]
[1736541575451,0.3062,3265.7,3265.6,0.3062]
[1736541575651,0.3062,3265.7,3265.2,0.30624]
[1736541575953,0.3062,3265.7,3265.6,0.3062]
[1736541576955,0.3062,3265.7,3265.6,0.7518]
[1736541577554,0.30619,3265.8,3265.7,0.30618]
[1736541578053,0.76806,3266.1,3266.0,0.30616]
[1736541578253,0.76806,3266.1,3265.8,0.30618]
[1736541578254,0.30618,3265.9,3265.8,0.30618]
[1736541578956,0.30619,3265.7,3265.6,0.7518]
[1736541580251,3.2078,3265.7,3265.5,0.00108925]
[1736541580458,0.3062,3265.6,3265.5,0.00108925]
[1736541581751,0.3062,3265.6,3265.5,0.30729925]
[1736541581959,0.3062,3265.6,3265.5,0.00108925]
[1736541582656,0.3062,3265.6,3264.3,3.2078]
[1736541582657,0.3063,3264.6,3264.3,3.2078]
[1736541582853,0.3063,3264.6,3264.3,0.30632]
[1736541583049,3.2078,3265.1,3264.5,3.18146966]
[1736541583050,2.14068777,3264.9,3264.5,3.18146966]
[1736541583254,0.3063,3264.6,3264.5,2.87515966]
[1736541585153,2.44698777,3264.6,3264.5,2.87515966]
[1736541586057,2.44698777,3264.6,3263.1,0.30643]
[1736541586058,0.30642,3263.3,3263.1,0.30643]
[1736541586258,0.30642,3263.3,3262.1,7.98206935]
[1736541586259,0.30643,3263.2,3263.0,0.30644]
[1736541586459,5.34848777,3263.5,3263.1,40.8]
[1736541586661,2.44711777,3263.2,3263.1,40.8]
[1736541588263,5.34848777,3263.5,3263.1,40.8]
[1736541588459,3.2078,3263.5,3263.1,40.8]
[1736541588758,3.85288777,3263.8,3263.7,0.30638]
[1736541588759,0.4562,3263.8,3263.7,0.30638]
[1736541589061,6.60448777,3264.1,3263.2,1.23258]
[1736541589257,0.30636,3264.0,3263.8,0.30637]
[1736541589456,0.30632,3264.4,3263.6,3.2078]
[1736541589655,0.30631,3264.5,3264.0,0.30635]
[1736541589862,0.30631,3264.5,3264.3,0.30632]
[1736541590163,4.1482,3264.6,3264.4,0.30631]
[1736541590164,4.4545,3264.6,3264.4,0.30631]
[1736541590361,0.30631,3264.5,3264.3,0.30632]
[1736541590553,0.30631,3264.5,3264.1,0.4382]
[1736541591059,0.30635,3264.0,3263.9,40.8]
[1736541591758,0.30635,3264.1,3263.9,41.10636]
[1736541592160,0.30635,3264.0,3263.9,40.8]
[1736541592458,0.30635,3264.1,3263.9,41.10636]
[1736541592657,0.30631,3264.5,3264.3,0.30632]
[1736541592864,4.1482,3264.6,3264.3,0.30632]
[1736541593165,4.1482,3264.6,3264.0,0.4368]
[1736541593459,4.1482,3264.6,3264.2,0.30633]
[1736541593660,0.30633,3264.2,3264.1,0.4771]
[1736541593858,0.30633,3264.2,3264.1,0.78344]
[1736541594063,0.30633,3264.3,3264.1,0.78344]
[1736541594264,4.1482,3264.6,3264.1,0.4771]
[1736541594466,0.30633,3264.2,3264.1,0.4771]
[1736541594667,0.30633,3264.3,3264.1,0.78344]
[1736541595064,0.30633,3264.2,3264.1,0.78344]
[1736541595267,4.1482,3264.6,3264.1,0.78344]
[1736541595463,0.30633,3264.3,3264.2,0.30633]
[1736541595664,4.1482,3264.6,3264.1,0.4771]
[1736541595873,0.30632,3264.3,3264.2,0.30633]
[1736541596464,0.30633,3264.2,3264.1,0.78344]
[1736541597057,0.30632,3264.3,3264.2,0.30633]
[1736541597273,4.1482,3264.6,3264.1,0.4771]
[1736541597462,0.30633,3264.2,3264.1,0.78344]
[1736541599269,4.1482,3264.6,3264.1,0.4771]
[1736541599571,0.30632,3264.4,3264.3,0.30632]
[1736541599772,4.1482,3264.6,3264.1,0.4771]
[1736541599969,0.30631,3264.5,3264.4,0.30631]
[1736541600271,0.4576,3264.9,3264.2,3.2078]
[1736541600568,0.30631,3264.5,3264.2,3.2078]
[1736541600773,3.2078,3264.6,3264.1,0.4771]
[1736541601271,0.30633,3264.2,3264.1,0.4771]
[1736541601465,0.30633,3264.2,3264.1,0.78344]
[1736541601670,0.30633,3264.2,3264.1,0.4771]
[1736541602872,0.30633,3264.3,3264.2,0.30632]
[1736541603074,3.2078,3264.6,3264.1,3.6849]
[1736541603268,2.5969561,3264.7,3264.1,3.6849]
[1736541603269,0.4561,3264.8,3264.5,3.2078]
[1736541603468,0.76562,3265.2,3264.5,3.2078]
[1736541603469,5.8047561,3265.5,3264.5,3.2078]
[1736541603674,0.30623,3265.4,3265.1,0.30625]
[1736541603874,0.30623,3265.4,3265.3,0.30623]
[1736541604070,1.256,3265.6,3265.1,0.4668]
[1736541604269,0.30624,3265.3,3265.2,0.30624]
[1736541604477,1.256,3265.6,3265.1,0.77304]
[1736541604478,0.30624,3265.2,3265.1,0.77304]
[1736541604677,0.30623,3265.4,3265.3,0.30623]
[1736541604977,0.30624,3265.2,3265.1,41.57304]
[1736541605174,0.30624,3265.2,3265.1,41.2668]
[1736541605470,0.30624,3265.2,3265.1,40.8]
[1736541605670,0.77612,3265.4,3265.3,0.30623]
[1736541605875,0.4699,3265.4,3265.3,0.30623]
[1736541606271,0.77612,3265.4,3265.3,0.30623]
[1736541606671,0.30623,3265.3,3265.2,0.77303]
[1736541606871,0.30623,3265.3,3265.2,0.4668]
[1736541607071,0.4699,3265.4,3265.2,0.4668]
[1736541607271,0.4699,3265.4,3265.3,0.30623]
[1736541607476,0.30619,3265.8,3265.7,0.30619]
[1736541607665,6.2424561,3265.9,3265.5,0.3062]
[1736541607666,0.30621,3265.6,3265.5,0.3062]
[1736541607872,0.30622,3265.5,3265.4,0.30622]
[1736541608373,0.30621,3265.6,3265.5,0.30621]
[1736541608677,0.30622,3265.5,3265.4,0.30621]
[1736541609170,0.30623,3265.3,3265.2,0.77303]
[1736541609492,0.30623,3265.4,3265.3,0.30623]
[1736541609776,2.14109372,3265.7,3265.2,0.4668]
[1736541610079,2.90665372,3265.4,3265.0,3.2078]
[1736541610277,2.44734372,3265.1,3265.0,3.2078]
[1736541610778,0.30625,3265.1,3265.0,3.51406]
[1736541610970,0.74815,3265.2,3265.1,0.30625]
[1736541611170,0.74815,3265.2,3265.0,3.2078]
[1736541611171,0.30625,3265.1,3265.0,3.2078]
[1736541611476,0.30629,3264.7,3264.6,3.2078]
[1736541611784,0.3063,3264.6,3264.5,0.4539]
[1736541612079,0.7737,3264.6,3264.5,0.4539]
[1736541612578,0.7737,3264.6,3264.5,0.76021]
[1736541612878,0.7737,3264.6,3264.5,0.4539]
[1736541613281,0.7737,3264.6,3264.5,0.76021]
[1736541613474,0.4674,3264.6,3264.5,0.76021]
[1736541613678,0.30626,3265.0,3264.9,0.30626]
[1736541613976,1.7166,3265.2,3264.5,45.22747]
[1736541614281,0.30628,3264.8,3264.7,0.30628]
[1736541614581,1.7166,3265.2,3264.5,44.4617]
[1736541614582,0.4606,3265.2,3264.5,44.4617]
[1736541614777,0.4606,3265.2,3265.1,0.30625]
[1736541615181,0.76684,3265.2,3265.1,0.30625]
[1736541615980,0.4606,3265.2,3265.1,0.30625]
[1736541616574,0.4606,3265.2,3265.1,0.74485]
[1736541618484,4.15379372,3265.7,3265.6,0.3062]
[1736541618672,0.30621,3265.6,3265.5,0.30621]
[1736541619071,0.3062,3265.7,3265.6,0.3062]
[1736541619376,0.3062,3265.7,3265.6,0.30619]
[1736541619785,0.30619,3265.7,3265.6,41.10619]
[1736541620377,0.4608,3265.8,3265.6,40.8]
[1736541620579,0.4608,3265.8,3265.7,0.30619]
[1736541621878,1.22906,3266.1,3266.0,0.30616]
[1736541622980,0.30617,3266.0,3265.9,0.30617]
[1736541623279,2.90651372,3266.0,3264.9,3.2078]
[1736541623481,0.9229,3266.1,3264.9,3.2078]
[1736541623482,0.30624,3265.3,3265.2,0.30623]
[1736541623985,0.30623,3265.4,3265.3,0.30622]
[1736541624279,0.30624,3265.3,3265.2,0.30623]
[1736541624583,0.4576,3265.5,3265.0,0.30625]
[1736541624584,0.30626,3265.1,3265.0,0.30625]
[1736541624976,0.78884,3265.2,3265.1,0.30625]
[1736541625178,0.30625,3265.1,3265.0,0.30625]
[1736541625882,0.78884,3265.2,3265.1,0.30625]
[1736541626086,0.30625,3265.1,3265.0,0.30625]
[1736541626281,0.78885,3265.2,3265.1,0.30625]
[1736541626583,0.30625,3265.1,3265.0,0.30625]
[1736541626786,0.30626,3265.0,3264.9,44.31406]
[1736541626997,0.4826,3265.2,3264.9,44.0078]
[1736541627180,0.30626,3265.1,3265.0,0.30626]
[1736541627381,0.4826,3265.2,3264.9,44.0078]
[1736541627382,0.30626,3265.0,3264.9,44.0078]
[1736541627583,5.65515372,3265.0,3264.9,40.8]
[1736541627784,3.51406,3265.0,3264.9,40.8]
[1736541627987,0.30626,3265.0,3264.9,41.10627]
[1736541628387,0.30626,3265.0,3264.9,40.8]
[1736541628985,0.30626,3265.0,3264.9,41.10627]
[1736541629585,0.30626,3265.0,3264.9,40.8]
[1736541629786,0.30626,3265.0,3264.9,41.10627]
[1736541630082,0.4826,3265.2,3264.9,40.8]
[1736541630288,0.78884,3265.2,3265.1,0.30625]
[1736541630990,0.4826,3265.2,3264.9,40.8]
[1736541631187,0.30625,3265.1,3265.0,0.30625]
[1736541633488,0.4738,3265.4,3264.9,40.8]
[1736541633698,0.30625,3265.2,3265.1,0.30624]
[1736541634493,0.30625,3265.1,3265.0,0.30625]
[1736541634790,0.4738,3265.4,3264.9,40.8]
[1736541634993,0.30624,3265.2,3265.1,0.30624]
[1736541636296,0.30625,3265.1,3265.0,0.30626]
[1736541637390,0.4738,3265.4,3264.9,40.8]
[1736541637596,0.4738,3265.4,3264.9,41.56566]
[1736541637897,0.78003,3265.4,3265.3,0.30623]
[1736541638496,0.4738,3265.4,3265.3,0.30623]
[1736541638796,0.4576,3265.5,3264.9,40.8]
[1736541639095,0.76381,3265.5,3265.4,0.30622]
[1736541639289,0.4576,3265.5,3265.4,0.30622]
[1736541639792,0.4576,3265.5,3265.3,0.78012]
[1736541639793,0.30622,3265.4,3265.3,0.78012]
[1736541640196,0.4576,3265.5,3265.3,0.4739]
[1736541640497,0.3062,3265.7,3265.6,0.30619]
[1736541640904,0.77928,3265.8,3265.7,0.30619]
[1736541641091,0.9117,3265.9,3265.5,3.2078]
[1736541641394,0.76168,3265.9,3265.8,0.30618]
[1736541641590,1.21788,3265.9,3265.8,0.30618]
[1736541641796,1.21788,3265.9,3265.8,41.10618]
[1736541642002,1.21788,3265.9,3265.8,40.8]
[1736541642199,1.21788,3265.9,3265.8,41.10618]
[1736541642595,1.21788,3265.9,3265.8,40.8]
[1736541643194,1.21788,3265.9,3265.8,41.10618]
[1736541643402,0.4511,3266.2,3265.8,44.0078]
[1736541643706,0.4511,3266.2,3266.1,0.30616]
[1736541644001,0.75725,3266.2,3266.1,0.30616]
[1736541645703,0.4498,3266.4,3266.3,0.30614]
[1736541645899,0.75593,3266.4,3266.3,0.30614]
[1736541646199,0.30614,3266.3,3266.2,3.2078]
[1736541646903,0.30614,3266.3,3266.2,3.51395]
[1736541648102,0.4498,3266.4,3266.2,3.2078]
[1736541648504,0.30614,3266.3,3266.2,3.51394]
[1736541649200,0.30614,3266.3,3266.2,0.30614]
[1736541649703,0.4498,3266.4,3265.9,0.4693]
[1736541650498,0.30616,3266.0,3265.9,0.4693]
[1736541650706,0.3062,3265.6,3265.5,0.30621]
[1736541650908,0.30622,3265.5,3265.1,0.4365]
[1736541651112,0.76412,3265.5,3265.4,0.30622]
[1736541652007,0.4579,3265.5,3265.4,0.30622]
[1736541652205,0.76411,3265.5,3265.4,0.30622]
[1736541653110,0.4579,3265.5,3265.4,0.30622]
[1736541653511,0.4579,3265.5,3265.4,41.10622]
[1736541655410,0.76411,3265.5,3265.4,41.10622]
[1736541655608,0.4579,3265.5,3265.4,41.10622]
[1736541656110,0.76411,3265.5,3265.4,41.10622]
[1736541656306,0.4579,3265.5,3265.4,41.10622]
[1736541657903,0.76411,3265.5,3265.4,41.10622]
[1736541658104,0.76411,3265.5,3265.4,40.8]
[1736541658309,0.76411,3265.5,3265.4,41.10622]
[1736541658814,0.76411,3265.5,3265.4,40.8]
[1736541659112,1.22345,3265.5,3265.0,3.2078]
[1736541659314,2.14109372,3265.3,3264.6,0.4355]
[1736541659611,0.4471,3265.2,3264.7,40.8]
[1736541659806,0.30626,3265.0,3264.9,0.30626]
[1736541660515,0.30628,3264.8,3264.7,41.10629]
[1736541660814,0.30628,3264.8,3264.7,40.8]
[1736541665813,0.30628,3264.8,3264.7,41.10629]
[1736541666006,3.2078,3265.1,3264.7,40.8]
[1736541666208,0.30625,3265.1,3265.0,0.30626]
[1736541666514,0.30628,3264.8,3264.7,40.8]
[1736541666707,2.44737372,3264.8,3264.7,40.8]
[1736541667311,0.9216,3265.2,3264.7,40.8]
[1736541667719,0.30626,3265.1,3265.0,0.30625]
[1736541668023,3.36893372,3265.2,3265.1,0.30625]
[1736541668418,3.06269372,3265.2,3264.7,41.2357]
[1736541668714,0.30626,3265.0,3264.9,0.30626]
[1736541669115,0.30628,3264.9,3264.8,0.30627]
[1736541669316,3.06269372,3265.2,3264.7,41.2357]
[1736541669517,0.30625,3265.1,3265.0,0.30625]
[1736541669711,4.43125,3265.5,3264.7,41.2357]
[1736541669712,3.6657,3265.5,3264.7,41.2357]
[1736541669911,0.3062,3265.7,3265.0,3.2078]
[1736541670113,2.61819372,3265.8,3265.7,0.30619]
[1736541670114,0.78329,3265.8,3265.7,0.30619]
[1736541670315,0.30619,3265.8,3265.7,0.30619]
[1736541670619,0.30619,3265.8,3265.4,3.2078]
[1736541670818,0.3062,3265.7,3265.6,0.3062]
[1736541671018,2.14109372,3265.8,3265.3,0.30623]
[1736541671214,0.4631,3265.6,3265.1,0.4633]
[1736541671518,0.30621,3265.5,3265.3,0.30622]
[1736541671720,0.30622,3265.5,3265.1,0.4633]
[1736541672027,0.4631,3265.6,3265.1,0.4633]
[1736541672212,0.30622,3265.4,3265.3,0.30623]
[1736541672609,0.30622,3265.5,3265.4,0.30622]
[1736541673428,0.30623,3265.4,3265.3,0.30623]
[1736541674526,0.30624,3265.2,3265.1,0.76954]
[1736541675123,2.14109372,3265.2,3264.7,41.2357]
[1736541675323,2.14109372,3265.2,3263.2,1.53213]
[1736541675324,0.30629,3264.7,3264.6,0.4412]
[1736541675529,2.14109372,3264.9,3264.6,0.4412]
[1736541675825,0.74988,3264.8,3264.7,41.10629]
[1736541676017,0.74988,3264.8,3264.7,40.8]
[1736541676228,0.74988,3264.8,3264.7,41.10629]
[1736541676229,0.4436,3264.8,3264.7,41.10629]
[1736541677420,0.4436,3264.8,3264.7,40.8]
[1736541677421,0.74988,3264.8,3264.7,40.8]
[1736541677620,0.74988,3264.8,3264.7,41.10629]
[1736541678227,0.74988,3264.8,3264.7,40.8]
[1736541678722,1.22178,3264.8,3264.7,40.8]
[1736541678925,0.30631,3264.5,3264.4,3.2078]
[1736541679327,2.14109372,3264.6,3264.2,0.30633]
[1736541679540,0.30632,3264.4,3264.3,41.10632]
[1736541680229,0.30632,3264.4,3264.3,40.8]
[1736541680622,0.30632,3264.4,3264.3,41.10632]
[1736541682031,0.30632,3264.4,3264.3,40.8]
[1736541682226,0.30639,3263.7,3263.5,3.2078]
[1736541682426,0.30641,3263.4,3263.3,0.78891]
[1736541682825,0.30641,3263.4,3263.3,41.2825]
[1736541684031,0.9352,3263.8,3263.3,41.2825]
[1736541684328,0.30639,3263.6,3263.5,0.3064]
[1736541684729,0.30639,3263.6,3263.5,0.30639]
[1736541685128,0.9352,3263.8,3263.3,41.2825]
[1736541685329,0.3064,3263.6,3263.3,41.2825]
[1736541685630,0.3064,3263.6,3263.5,0.3064]
[1736541686332,0.30638,3263.7,3263.6,0.30639]
[1736541686722,0.4785,3263.8,3263.3,41.2825]
[1736541687038,0.30635,3264.0,3263.5,3.9738]
[1736541687234,0.30635,3264.0,3263.6,0.4604]
[1736541687938,0.4695,3264.3,3263.6,0.4604]
[1736541688141,0.30634,3264.2,3264.1,0.30634]
[1736541688323,0.4695,3264.3,3263.6,0.4604]
[1736541688532,0.4695,3264.3,3263.9,3.2078]
[1736541688833,0.30633,3264.2,3264.1,40.8]
[1736541689132,0.30633,3264.2,3264.1,41.10634]
[1736541689326,0.30633,3264.2,3264.1,40.8]
[1736541690835,0.30633,3264.2,3264.1,41.10634]
[1736541691037,0.30633,3264.2,3264.1,40.8]
[1736541691230,0.4695,3264.3,3264.0,0.4722]
[1736541691433,0.30639,3263.7,3263.6,0.30639]
[1736541691738,0.30639,3263.7,3263.6,41.10639]
[1736541692635,2.14109372,3264.2,3263.6,40.8]
[1736541693032,0.30636,3264.0,3263.9,0.30636]
[1736541693242,2.14109372,3264.2,3263.7,3.2078]
[1736541693433,0.30637,3263.9,3263.7,2.78907]
[1736541693649,0.30638,3263.7,3263.1,0.30644]
[1736541693941,2.14109372,3263.4,3263.0,0.30644]
[1736541694136,0.30643,3263.2,3263.1,40.8]
[1736541694839,0.3064,3263.5,3263.4,0.3064]
[1736541695228,0.4785,3263.6,3263.3,0.30641]
[1736541695438,0.3064,3263.5,3263.4,0.30641]
[1736541695634,0.4785,3263.6,3263.2,0.458]
[1736541695834,0.30641,3263.4,3263.3,0.30641]
[1736541696036,0.30641,3263.4,3263.2,0.458]
[1736541696239,0.30641,3263.4,3263.3,0.30642]
[1736541696538,0.30641,3263.4,3263.2,0.76442]
[1736541696841,0.30642,3263.3,3263.2,0.76442]
[1736541697046,0.30642,3263.3,3263.2,0.458]
[1736541697236,0.30642,3263.3,3263.2,0.76443]
[1736541698738,0.30642,3263.3,3263.2,0.458]
[1736541698940,6.59339372,3263.6,3263.1,40.8]
[1736541699242,0.30643,3263.2,3263.1,40.8]
[1736541699539,3.51423,3263.2,3263.1,40.8]
[1736541699745,0.30652,3262.3,3262.1,0.30653]
[1736541700043,0.30652,3262.3,3262.1,0.30652]
[1736541700242,0.30651,3262.4,3262.2,41.10651]
[1736541700639,0.30651,3262.4,3262.3,0.30651]
[1736541700836,0.30652,3262.2,3262.0,0.4821]
[1736541701037,3.2078,3262.6,3262.0,0.4821]
[1736541701236,0.30654,3262.0,3261.9,3.2078]
[1736541701547,0.30653,3262.1,3262.0,0.30653]
[1736541701940,0.30653,3262.2,3262.0,0.30654]
[1736541702138,3.661,3262.6,3261.9,44.0078]
[1736541702439,0.30654,3262.0,3261.9,40.8]
[1736541702638,0.30653,3262.1,3261.9,41.10655]
[1736541702841,0.30653,3262.2,3261.9,41.10655]
[1736541703034,0.30654,3262.1,3261.9,41.10655]
[1736541703238,0.30653,3262.1,3261.9,41.10655]
[1736541703542,0.30654,3262.0,3261.9,40.8]
[1736541703845,0.76624,3262.0,3261.9,40.8]
[1736541704539,0.4597,3262.0,3261.9,41.10655]
[1736541704844,0.76624,3262.0,3261.9,40.8]
[1736541705539,0.4597,3262.0,3261.9,41.10655]
[1736541705947,0.76624,3262.0,3261.9,40.8]
[1736541706743,0.76624,3262.0,3261.9,41.10655]
[1736541706948,0.4597,3262.0,3261.9,41.10655]
[1736541707243,0.30652,3262.2,3262.1,0.30653]
[1736541707636,1.20951,3262.4,3261.9,40.8]
[1736541707836,0.30652,3262.3,3262.1,0.30652]
[1736541708037,0.30652,3262.3,3262.2,0.30652]
[1736541708248,0.30652,3262.3,3262.1,0.30653]
[1736541709144,0.30652,3262.3,3261.9,40.8]
[1736541709442,0.30652,3262.3,3261.9,44.0078]
[1736541709643,0.30652,3262.3,3262.2,0.30652]
[1736541709839,0.903,3262.4,3262.2,0.30652]
[1736541710046,2.59429372,3262.6,3261.9,44.0078]
[1736541710845,0.30651,3262.4,3262.2,0.30652]
[1736541711347,0.30651,3262.4,3261.9,44.0078]
[1736541711543,0.30652,3262.3,3262.2,0.30652]
[1736541711946,0.30651,3262.4,3262.3,0.30651]
[1736541712148,2.59429372,3262.6,3261.9,44.0078]
[1736541712741,0.30651,3262.4,3262.3,0.30651]
[1736541713444,0.30652,3262.3,3262.2,0.30651]
[1736541713647,0.30651,3262.4,3262.3,0.30651]
[1736541714150,2.59429372,3262.6,3261.9,44.0078]
[1736541714549,0.30651,3262.4,3262.3,0.3065]
[1736541718450,0.30652,3262.3,3262.2,0.30651]
[1736541718754,0.30653,3262.2,3262.1,0.30652]
[1736541719755,2.44761372,3262.3,3262.2,0.30652]
[1736541720246,2.59429372,3262.6,3262.2,0.30652]
[1736541720449,2.14109372,3262.9,3262.4,3.2078]
[1736541720649,0.30648,3262.6,3262.5,1.25898]
[1736541720851,0.30648,3262.7,3262.6,0.30648]
[1736541721753,2.14109372,3262.9,3262.0,3.2078]
[1736541721954,0.30653,3262.1,3261.9,0.4745]
[1736541722161,0.30653,3262.1,3262.0,0.30654]
[1736541722856,2.14109372,3262.3,3261.9,41.2745]
[1736541723159,0.30654,3262.0,3261.9,41.58105]
[1736541723452,0.30654,3262.0,3261.9,41.2745]
[1736541723757,0.30654,3262.0,3261.9,41.58105]
[1736541724158,0.30654,3262.0,3261.9,41.2745]
[1736541724357,0.30654,3262.0,3261.3,3.2078]
[1736541724358,2.14109372,3262.0,3261.3,3.2078]
[1736541724560,0.482,3262.4,3260.4,4.74124]
[1736541724561,5.34889372,3261.4,3260.4,4.74124]
[1736541724753,5.34889372,3261.4,3260.5,41.2559]
[1736541724754,2.14109372,3261.0,3260.5,41.2559]
[1736541724954,0.30666,3260.7,3260.5,41.56258]
[1736541725149,2.14109372,3260.7,3260.5,41.2559]
[1736541725351,2.14109372,3260.7,3260.5,0.4559]
[1736541725352,0.30667,3260.6,3260.5,0.4559]
[1736541725550,0.30667,3260.6,3260.0,3.2078]
[1736541725551,2.14109372,3260.6,3260.0,3.2078]
[1736541725756,2.14109372,3260.1,3259.5,3.2078]
[1736541725964,2.14109372,3259.6,3259.0,3.2078]
[1736541726264,2.14109372,3259.6,3259.2,0.3068]
[1736541726555,0.3068,3259.2,3258.6,15.2204415]
[1736541726768,0.3068,3259.2,3258.7,0.30685]
[1736541726964,0.30682,3259.1,3258.6,3.2078]
[1736541727163,2.14109372,3259.3,3258.6,3.2078]
[1736541727462,3.2078,3259.4,3259.0,0.30681]
[1736541727463,2.44788372,3259.4,3259.0,0.30681]
[1736541727758,0.3068,3259.3,3258.7,40.8]
[1736541728060,2.44788372,3259.4,3258.9,0.30682]
[1736541728254,0.30679,3259.3,3258.8,0.30683]
[1736541728452,0.30679,3259.3,3258.9,0.30683]
[1736541728652,0.30679,3259.3,3258.7,40.8]
[1736541728653,2.44792372,3259.0,3258.7,41.10685]
[1736541728857,2.14109372,3259.3,3258.7,40.8]
[1736541729069,3.51452,3260.2,3259.2,0.3068]
[1736541729359,2.60499372,3260.1,3259.5,0.30677]
[1736541729554,2.14109372,3259.8,3259.3,0.4397]
[1736541729755,2.14109372,3259.8,3259.7,0.30676]
[1736541729961,2.14109372,3260.1,3259.6,3.2078]
[1736541730161,2.14109372,3260.1,3259.7,0.30675]
[1736541730162,0.30673,3260.0,3259.7,0.30675]
[1736541730561,2.14109372,3260.1,3259.7,0.30675]
[1736541730861,2.44781372,3260.1,3259.7,0.30675]
[1736541731055,0.30673,3260.0,3259.6,3.51456]
[1736541731254,0.30673,3260.0,3259.6,0.30676]
[1736541731456,0.30673,3260.0,3259.7,0.30675]
[1736541731660,2.44781372,3260.1,3259.7,0.30675]
[1736541732162,2.44781372,3260.1,3259.8,0.30674]
[1736541732364,2.44779372,3260.4,3260.0,0.30673]
[1736541733264,2.14109372,3260.7,3260.0,3.2078]
[1736541733461,0.30663,3261.1,3260.6,0.30667]
[1736541733666,0.30662,3261.2,3260.8,0.30665]
[1736541733963,0.30663,3261.0,3260.7,41.10666]
[1736541734154,0.30664,3260.9,3260.7,40.8]
[1736541734359,0.30665,3260.9,3260.7,40.8]
[1736541734563,3.6757,3261.4,3260.7,40.8]
[1736541734564,0.30665,3260.8,3260.7,40.8]
[1736541735364,5.34889372,3261.0,3260.7,40.8]
[1736541735659,0.30664,3260.9,3260.7,40.8]
[1736541735858,4.9317,3261.4,3260.7,40.8]
[1736541736063,0.30661,3261.3,3261.0,0.30663]
[1736541736360,4.9317,3261.4,3261.1,0.30662]
[1736541736567,0.30661,3261.3,3261.0,0.30663]
[1736541736761,0.4679,3261.4,3260.7,40.8]
[1736541736963,0.30661,3261.3,3261.0,0.30663]
[1736541737162,0.30661,3261.3,3260.7,40.8]
[1736541737358,0.4679,3261.4,3260.7,40.8]
[1736541737567,0.4679,3261.4,3261.0,3.2078]
[1736541737763,0.4679,3261.4,3260.7,40.8]
[1736541738265,0.30662,3261.2,3261.0,0.30663]
[1736541738458,0.4679,3261.4,3260.7,40.8]
[1736541738659,0.30661,3261.3,3261.1,0.30662]
[1736541739070,0.4679,3261.4,3260.7,40.8]
[1736541739259,0.4679,3261.4,3261.1,3.2078]
[1736541739464,0.4679,3261.4,3261.3,0.30661]
[1736541739661,0.4679,3261.4,3261.0,3.2078]